fUSD/lending_fUSD_20240628
["ID","MTS","AMOUNT","RATE_DAILY","PERIOD"]
[330573192,1719581488814,-500.0,0.00022027,3]
[330573193,1719581488823,-7520.38,0.00022027,3]
[330573194,1719581488833,-730.49,0.00022027,3]
[330573195,1719581488842,-1079.69,0.00022027,3]
[330573196,1719581488852,-1833.12,0.00022027,3]
[330573197,1719581488861,-800.68,0.00022027,3]
[330573198,1719581488871,-500.0,0.00022027,3]
[330573199,1719581488880,-500.0,0.00022027,3]
[330573200,1719581488890,-625.41,0.00022027,3]
[330573201,1719581488899,-500.0,0.00022027,3]
[330573202,1719581488908,-1293.07,0.00022027,3]
[330573203,1719581488918,-1611.83,0.00022027,3]
[330573204,1719581488928,-500.0,0.00022027,3]
[330573205,1719581488938,-1335.03,0.00022027,3]
[330573206,1719581488949,-500.0,0.00022027,3]
[330573207,1719581488959,-500.0,0.00022027,3]
[330573208,1719581488968,-500.0,0.00022027,3]
[330573209,1719581488978,-500.0,0.00022027,3]
[330573210,1719581488987,-2017.8,0.00022027,3]
[330573211,1719581488997,-1169.99,0.00022027,3]
[330573212,1719581489006,-559.77,0.00022027,3]
[330573213,1719581489016,-500.0,0.00022027,3]
[330573214,1719581489026,-794.53,0.00022027,3]
[330573215,1719581489035,-500.0,0.00022027,3]
[330573216,1719581489044,-2287.34,0.00022027,3]
[330573217,1719581489055,-500.0,0.00022027,3]
[330573218,1719581489066,-598.26,0.00022027,3]
[330573219,1719581489076,-500.0,0.00022027,3]
[330573220,1719581489087,-969.34,0.00022027,3]
[330573221,1719581489097,-500.0,0.00022027,3]
[330573222,1719581489108,-848.75,0.00022027,3]
[330573223,1719581489118,-500.0,0.00022027,3]
[330573224,1719581489128,-721.51,0.00022027,3]
[330573225,1719581489138,-250.0,0.00022027,3]
[330573226,1719581489148,-1520.14,0.00022027,3]
[330573227,1719581489158,-500.0,0.00022027,3]
[330573228,1719581489168,-574.54,0.00022027,3]
[330573229,1719581489178,-384.11749523,0.00022027,3]
[330573230,1719581489188,-753.07,0.00022027,3]
[330573231,1719581489198,-4951.63,0.00022027,3]
[330573232,1719581489207,-1212.49,0.00022027,3]
[330573233,1719581489216,-293.45376256,0.00022027,3]
[330573234,1719581489225,-2156.22,0.00022027,3]
[330573235,1719581489235,-500.0,0.00022027,3]
[330573236,1719581489245,-3115.92,0.00022027,3]
[330573237,1719581489254,-752.65,0.00022027,3]
[330573238,1719581489263,-500.0,0.00022027,3]
[330573239,1719581489272,-500.0,0.00022027,3]
[330573240,1719581489281,-500.0,0.00022027,3]
[330573241,1719581489290,-1938.62,0.00022027,3]
[330573242,1719581489299,-2619.06,0.00022027,3]
[330573243,1719581489308,-500.0,0.00022027,3]
[330573244,1719581489321,-1558.14,0.00022027,3]
[330573245,1719581489333,-500.0,0.00022027,3]
[330573246,1719581489342,-1783.25,0.00022027,3]
[330573247,1719581489351,-595.43,0.00022027,3]
[330573248,1719581489361,-739.78,0.00022027,3]
[330573249,1719581489370,-500.0,0.00022027,3]
[330573250,1719581489379,-500.0,0.00022027,3]
[330573251,1719581489389,-500.0,0.00022027,3]
[330573252,1719581489398,-500.0,0.00022027,3]
[330573253,1719581489409,-500.0,0.00022027,3]
[330573254,1719581489426,-591.89,0.00022027,3]
[330573255,1719581489435,-565.44,0.00022027,3]
[330573256,1719581489444,-500.0,0.00022027,3]
[330573257,1719581489455,-998.56,0.00022027,3]
[330573258,1719581489464,-500.0,0.00022027,3]
[330573259,1719581489474,-1690.37,0.00022027,3]
[330573260,1719581489483,-500.0,0.00022027,3]
[330573261,1719581489492,-1544.97,0.00022027,3]
[330573262,1719581489501,-500.0,0.00022027,3]
[330573263,1719581489510,-744.25,0.00022027,3]
[330573264,1719581489519,-1315.66,0.00022027,3]
[330573265,1719581489528,-1759.06,0.00022027,3]
[330573266,1719581489537,-500.0,0.00022027,3]
[330573267,1719581489547,-2970.47,0.00022027,3]
[330573268,1719581489556,-500.0,0.00022027,3]
[330573269,1719581489567,-790.85,0.00022027,3]
[330573270,1719581489577,-930.55,0.00022027,3]
[330573271,1719581489586,-500.0,0.00022027,3]
[330573272,1719581489596,-1670.71,0.00022027,3]
[330573273,1719581489605,-1218.88,0.00022027,3]
[330573274,1719581489614,-500.0,0.00022027,3]
[330573275,1719581489624,-1189.97,0.00022027,3]
[330573276,1719581489633,-1119.51,0.00022027,3]
[330573277,1719581489643,-500.0,0.00022027,2]
[330573278,1719581489653,-500.0,0.00022027,3]
[330573279,1719581489664,-2631.32,0.00022027,3]
[330573280,1719581489673,-750.26,0.00022027,3]
[330573281,1719581489898,-1504.46,0.00022027,3]
[330573282,1719581489908,-500.0,0.00022027,3]
[330573283,1719581489917,-500.0,0.00022027,3]
[330573284,1719581489927,-1597.63,0.00022027,3]
[330573285,1719581489936,-731.52,0.00022027,3]
[330573286,1719581489946,-500.0,0.00022027,3]
[330573287,1719581489955,-1879.32,0.00022027,3]
[330573288,1719581489964,-500.0,0.00022027,3]
[330573289,1719581489973,-1301.36,0.00022027,3]
[330573290,1719581489983,-538.76,0.00022027,3]
[330573291,1719581489992,-500.0,0.00022027,3]
[330573292,1719581490001,-554.8,0.00022027,3]
[330573293,1719581490010,-500.0,0.00022027,3]
[330573294,1719581490019,-1143.78,0.00022027,3]
[330573295,1719581490028,-500.0,0.00022027,3]
[330573296,1719581490037,-500.0,0.00022027,2]
[330573297,1719581490047,-500.0,0.00022027,3]
[330573298,1719581490057,-500.0,0.00022027,3]
[330573299,1719581490068,-500.0,0.00022027,3]
[330573300,1719581490076,-1300.34,0.00022027,3]
[330573301,1719581490087,-500.0,0.00022027,3]
[330573302,1719581490097,-2901.03,0.00022027,3]
[330573303,1719581490106,-500.0,0.00022027,3]
[330573304,1719581490116,-1548.67,0.00022027,3]
[330573305,1719581490126,-511.8,0.00022027,3]
[330573306,1719581490135,-2485.2,0.00022027,3]
[330573307,1719581490144,-500.0,0.00022027,3]
[330573308,1719581490153,-1224.26,0.00022027,3]
[330573309,1719581490162,-531.92,0.00022027,3]
[330573310,1719581490171,-1402.6,0.00022027,3]
[330573311,1719581490181,-500.0,0.00022027,3]
[330573312,1719581490190,-500.0,0.00022027,3]
[330573313,1719581490199,-980.37,0.00022027,3]
[330573314,1719581490208,-3943.37,0.00022027,3]
[330573315,1719581490218,-500.0,0.00022027,3]
[330573316,1719581490227,-1173.47,0.00022027,3]
[330573317,1719581490236,-500.0,0.00022027,3]
[330573318,1719581490245,-500.0,0.00022027,3]
[330573319,1719581490255,-500.0,0.00022027,3]
[330573320,1719581490264,-2122.78,0.00022027,3]
[330573321,1719581490274,-500.0,0.00022027,3]
[330573322,1719581490285,-700.74,0.00022027,3]
[330573323,1719581490295,-2694.47,0.00022027,3]
[330573324,1719581490305,-500.0,0.00022027,3]
[330573325,1719581490317,-2269.54,0.00022027,3]
[330573326,1719581490328,-1411.57,0.00022027,3]
[330573327,1719581490338,-500.0,0.00022027,3]
[330573328,1719581490348,-1915.65,0.00022027,3]
[330573329,1719581490360,-1443.34,0.00022027,3]
[330573330,1719581490371,-1782.46,0.00022027,3]
[330573331,1719581490380,-500.0,0.00022027,3]
[330573332,1719581490390,-626.04,0.00022027,3]
[330573333,1719581490399,-2259.69,0.00022027,3]
[330573334,1719581490411,-1144.19,0.00022027,3]
[330573335,1719581490421,-500.0,0.00022027,3]
[330573336,1719581490431,-500.0,0.00022027,3]
[330573337,1719581490440,-1933.95,0.00022027,3]
[330573338,1719581490451,-500.0,0.00022027,3]
[330573339,1719581490461,-1200.64,0.00022027,3]
[330573340,1719581490471,-500.0,0.00022027,3]
[330573341,1719581490482,-500.0,0.00022027,3]
[330573342,1719581490493,-500.0,0.00022027,3]
[330573343,1719581490502,-500.0,0.00022027,3]
[330573344,1719581490511,-1245.79,0.00022027,3]
[330573345,1719581490521,-3679.52,0.00022027,3]
[330573346,1719581490530,-626.61196408,0.00022027,3]
[330573347,1719581490539,-500.0,0.00022027,3]
[330573348,1719581490549,-788.2,0.00022027,3]
[330573349,1719581490559,-1930.1,0.00022027,3]
[330573350,1719581490572,-1520.55,0.00022027,3]
[330573351,1719581490581,-856.29,0.00022027,3]
[330573352,1719581490591,-253.30863632,0.00022027,3]
[330573353,1719581490600,-1084.78,0.00022027,3]
[330573354,1719581490609,-500.0,0.00022027,3]
[330573355,1719581490618,-755.66,0.00022027,3]
[330573356,1719581490627,-939.08,0.00022027,3]
[330573357,1719581490637,-1156.32,0.00022027,3]
[330573358,1719581490647,-500.0,0.00022027,3]
[330573359,1719581490657,-1484.53,0.00022027,3]
[330573360,1719581490667,-819.59,0.00022027,3]
[330573361,1719581490676,-1281.03,0.00022027,3]
[330573362,1719581490686,-1418.89,0.00022027,3]
[330573363,1719581490696,-500.0,0.00022027,3]
[330573364,1719581490705,-500.0,0.00022027,3]
[330573365,1719581490715,-500.0,0.00022027,3]
[330573366,1719581490724,-1289.19,0.00022027,3]
[330573367,1719581490733,-500.0,0.00022027,3]
[330573368,1719581490743,-1394.68,0.00022027,3]
[330573369,1719581490752,-854.39,0.00022027,3]
[330573370,1719581490761,-500.0,0.00022027,3]
[330573371,1719581490770,-3187.49,0.00022027,3]
[330573372,1719581490780,-1050.74,0.00022027,3]
[330573373,1719581490789,-1773.83,0.00022027,3]
[330573374,1719581490799,-393.07,0.00022027,3]
[330573375,1719581490808,-500.0,0.00022027,3]
[330573376,1719581490821,-4015.68,0.00022027,3]
[330573377,1719581490831,-1182.56,0.00022027,3]
[330573378,1719581490839,-606.34,0.00022027,3]
[330573379,1719581490849,-500.0,0.00022027,3]
[330573380,1719581490858,-1207.66,0.00022027,3]
[330573381,1719581490867,-11118.41,0.00022027,3]
[330573382,1719581490875,-500.0,0.00022027,3]
[330573383,1719581490885,-500.0,0.00022027,3]
[330573384,1719581490895,-1027.22,0.00022027,3]
[330573385,1719581490904,-909.12,0.00022027,3]
[330573386,1719581490914,-2109.42,0.00022027,3]
[330573387,1719581490923,-500.0,0.00022027,3]
[330573388,1719581490932,-500.0,0.00022027,3]
[330573389,1719581490941,-500.0,0.00022027,3]
[330573390,1719581490950,-2224.85,0.00022027,3]
[330573391,1719581490959,-1433.86,0.00022027,3]
[330573392,1719581490968,-500.0,0.00022027,3]
[330573393,1719581490978,-500.0,0.00022027,3]
[330573394,1719581490987,-500.0,0.00022027,3]
[330573395,1719581490997,-500.0,0.00022027,3]
[330573396,1719581491007,-500.0,0.00022027,3]
[330573397,1719581491016,-3373.14,0.00022027,3]
[330573398,1719581491025,-639.12,0.00022027,3]
[330573399,1719581491034,-1039.41,0.00022027,3]
[330573400,1719581491044,-1382.55,0.00022027,3]
[330573401,1719581491053,-525.53,0.00022027,3]
[330573402,1719581491066,-500.0,0.00022027,3]
[330573403,1719581491075,-500.0,0.00022027,3]
[330573404,1719581491085,-1766.72,0.00022027,3]
[330573405,1719581491096,-2429.33,0.00022027,3]
[330573406,1719581491106,-881.88,0.00022027,3]
[330573407,1719581491117,-1305.84,0.00022027,3]
[330573408,1719581491126,-500.0,0.00022027,3]
[330573409,1719581491136,-1690.78,0.00022027,3]
[330573410,1719581491148,-865.58,0.00022027,3]
[330573411,1719581491158,-2610.51,0.00022027,3]
[330573412,1719581491169,-500.0,0.00022027,3]
[330573413,1719581491178,-3640.69,0.00022027,3]
[330573414,1719581491187,-1065.83,0.00022027,3]
[330573415,1719581491197,-500.0,0.00022027,3]
[330573416,1719581491206,-500.0,0.00022027,3]
[330573417,1719581491215,-500.0,0.00022027,3]
[330573418,1719581491224,-6031.77,0.00022027,3]
[330573419,1719581491233,-500.0,0.00022027,3]
[330573420,1719581491243,-927.31,0.00022027,3]
[330573421,1719581491252,-500.0,0.00022027,3]
[330573422,1719581491262,-1027.34,0.00022027,3]
[330573423,1719581491271,-500.0,0.00022027,3]
[330573424,1719581491280,-500.0,0.00022027,3]
[330573425,1719581491290,-992.66,0.00022027,3]
[330573426,1719581491299,-1368.85,0.00022027,3]
[330573427,1719581491308,-500.0,0.00022027,3]
[330573428,1719581491319,-659.44,0.00022027,3]
[330573429,1719581491328,-661.85,0.00022027,3]
[330573430,1719581491338,-2995.16,0.00022027,3]
[330573431,1719581491347,-1213.4,0.00022027,3]
[330573432,1719581491356,-1126.79,0.00022027,3]
[330573433,1719581491365,-397.82684383,0.00022027,3]
[330573434,1719581491375,-2342.86,0.00022027,3]
[330573435,1719581491385,-1404.38,0.00022027,3]
[330573436,1719581491394,-500.0,0.00022027,3]
[330573437,1719581491403,-2099.81,0.00022027,3]
[330573438,1719581491413,-554.59,0.00022027,3]
[330573439,1719581491428,-500.0,0.00022027,3]
[330573440,1719581491437,-3678.51,0.00022027,3]
[330573441,1719581491447,-1002.11,0.00022027,3]
[330573442,1719581491457,-643.23,0.00022027,3]
[330573443,1719581491466,-5337.73,0.00022027,3]
[330573444,1719581491476,-786.12,0.00022027,3]
[330573445,1719581491485,-1207.55,0.00022027,3]
[330573446,1719581491496,-500.0,0.00022027,3]
[330573447,1719581491506,-845.27,0.00022027,3]
[330573448,1719581491516,-754.57,0.00022027,3]
[330573449,1719581491526,-1386.67,0.00022027,3]
[330573450,1719581491536,-500.0,0.00022027,3]
[330573451,1719581491545,-1014.0,0.00022027,3]
[330573452,1719581491554,-911.43,0.00022027,3]
[330573453,1719581491565,-500.0,0.00022027,3]
[330573454,1719581491575,-1466.36,0.00022027,3]
[330573455,1719581491585,-3812.46,0.00022027,3]
[330573456,1719581491595,-500.0,0.00022027,3]
[330573457,1719581491604,-1058.74,0.00022027,3]
[330573458,1719581491614,-997.7,0.00022027,3]
[330573459,1719581491623,-4068.22,0.00022027,3]
[330573460,1719581491633,-500.0,0.00022027,3]
[330573461,1719581491642,-500.0,0.00022027,3]
[330573462,1719581491652,-1837.07,0.00022027,3]
[330573463,1719581491661,-500.0,0.00022027,3]
[330573464,1719581491670,-500.0,0.00022027,3]
[330573465,1719581491679,-500.0,0.00022027,3]
[330573466,1719581491688,-1046.48,0.00022027,3]
[330573467,1719581491698,-500.0,0.00022027,3]
[330573468,1719581491708,-500.0,0.00022027,3]
[330573469,1719581491717,-500.0,0.00022027,3]
[330573470,1719581491726,-500.0,0.00022027,3]
[330573471,1719581491735,-500.0,0.00022027,3]
[330573472,1719581491745,-500.0,0.00022027,3]
[330573473,1719581491754,-1790.37,0.00022027,3]
[330573474,1719581491763,-500.0,0.00022027,3]
[330573475,1719581491773,-1186.46,0.00022027,3]
[330573476,1719581491782,-500.0,0.00022027,3]
[330573477,1719581491792,-448.53277559,0.00022027,3]
[330573478,1719581491801,-2000.64,0.00022027,3]
[330573479,1719581491811,-500.0,0.00022027,3]
[330573480,1719581491821,-719.3,0.00022027,3]
[330573481,1719581491830,-3251.06,0.00022027,3]
[330573482,1719581491839,-988.84,0.00022027,3]
[330573483,1719581491849,-638.89,0.00022027,3]
[330573484,1719581491858,-500.0,0.00022027,3]
[330573485,1719581491868,-500.0,0.00022027,3]
[330573486,1719581491877,-709.49,0.00022027,3]
[330573487,1719581491888,-500.0,0.00022027,3]
[330573488,1719581491898,-5851.89,0.00022027,3]
[330573489,1719581491907,-6549.41,0.00022027,3]
[330573490,1719581491916,-1243.35,0.00022027,3]
[330573491,1719581491926,-1121.54,0.00022027,3]
[330573492,1719581491935,-3127.02,0.00022027,3]
[330573493,1719581491944,-500.0,0.00022027,3]
[330573494,1719581491953,-2930.95,0.00022027,3]
[330573495,1719581491963,-500.0,0.00022027,3]
[330573496,1719581491972,-500.0,0.00022027,3]
[330573497,1719581492372,-851.08,0.00022027,3]
[330573498,1719581492382,-776.56,0.00022027,3]
[330573499,1719581492391,-1849.31,0.00022027,3]
[330573500,1719581492401,-2636.86,0.00022027,3]
[330573501,1719581492412,-500.0,0.00022027,3]
[330573502,1719581492426,-500.0,0.00022027,3]
[330573503,1719581492436,-722.53,0.00022027,3]
[330573504,1719581492445,-1462.6,0.00022027,3]
[330573505,1719581492456,-500.0,0.00022027,3]
[330573506,1719581492465,-500.0,0.00022027,3]
[330573507,1719581492475,-1920.81,0.00022027,3]
[330573508,1719581492484,-1534.46,0.00022027,3]
[330573509,1719581492494,-1966.76,0.00022027,3]
[330573510,1719581492504,-1645.58,0.00022027,3]
[330573511,1719581492513,-3455.8,0.00022027,3]
[330573512,1719581492523,-1485.53,0.00022027,3]
[330573513,1719581492533,-2653.03,0.00022027,3]
[330573514,1719581492542,-500.0,0.00022027,3]
[330573515,1719581492551,-500.0,0.00022027,3]
[330573516,1719581492561,-1022.75,0.00022027,3]
[330573517,1719581492572,-500.0,0.00022027,3]
[330573518,1719581492581,-1315.88,0.00022027,3]
[330573519,1719581492590,-500.0,0.00022027,3]
[330573520,1719581492599,-500.0,0.00022027,3]
[330573521,1719581492608,-1627.89,0.00022027,3]
[330573522,1719581492618,-780.56,0.00022027,3]
[330573523,1719581492627,-4218.02,0.00022027,3]
[330573524,1719581492636,-500.0,0.00022027,3]
[330573525,1719581492646,-500.0,0.00022027,3]
[330573526,1719581492655,-500.0,0.00022027,3]
[330573527,1719581492664,-1377.58,0.00022027,3]
[330573528,1719581492674,-500.0,0.00022027,3]
[330573529,1719581492683,-500.0,0.00022027,3]
[330573530,1719581492693,-500.0,0.00022027,3]
[330573531,1719581492704,-674.62,0.00022027,3]
[330573532,1719581492714,-500.0,0.00022027,3]
[330573533,1719581492723,-514.37,0.00022027,3]
[330573534,1719581492732,-2978.97,0.00022027,3]
[330573535,1719581492741,-7525.21,0.00022027,3]
[330573536,1719581492750,-954.41,0.00022027,3]
[330573537,1719581492760,-1511.98,0.00022027,3]
[330573538,1719581492769,-763.25,0.00022027,3]
[330573539,1719581492779,-500.0,0.00022027,3]
[330573540,1719581492787,-810.94,0.00022027,3]
[330573541,1719581492797,-815.5,0.00022027,3]
[330573542,1719581492806,-500.0,0.00022027,3]
[330573543,1719581492816,-500.0,0.00022027,3]
[330573544,1719581492825,-1485.98,0.00022027,3]
[330573545,1719581492834,-500.0,0.00022027,3]
[330573546,1719581492843,-500.0,0.00022027,3]
[330573547,1719581492854,-500.0,0.00022027,3]
[330573548,1719581492863,-500.0,0.00022027,3]
[330573549,1719581492873,-1836.96,0.00022027,3]
[330573550,1719581492883,-2470.1,0.00022027,3]
[330573551,1719581492892,-1386.57,0.00022027,3]
[330573552,1719581492901,-572.01,0.00022027,3]
[330573553,1719581492911,-517.73,0.00022027,3]
[330573554,1719581492920,-856.65,0.00022027,3]
[330573555,1719581492929,-1584.05,0.00022027,3]
[330573556,1719581492938,-1512.1,0.00022027,3]
[330573557,1719581492948,-758.53,0.00022027,3]
[330573558,1719581492958,-1076.21,0.00022027,3]
[330573559,1719581492968,-1219.7,0.00022027,3]
[330573560,1719581492977,-898.71,0.00022027,3]
[330573561,1719581492987,-692.9,0.00022027,3]
[330573562,1719581492996,-500.0,0.00022027,3]
[330573563,1719581493006,-4004.99,0.00022027,3]
[330573564,1719581493015,-6874.99,0.00022027,3]
[330573565,1719581493025,-1336.68,0.00022027,3]
[330573566,1719581493035,-798.07,0.00022027,3]
[330573567,1719581493044,-500.0,0.00022027,3]
[330573568,1719581493054,-500.0,0.00022027,3]
[330573569,1719581493063,-500.0,0.00022027,3]
[330573570,1719581493075,-500.0,0.00022027,3]
[330573571,1719581493085,-1201.59,0.00022027,3]
[330573572,1719581493095,-1469.29,0.00022027,3]
[330573573,1719581493106,-500.0,0.00022027,3]
[330573574,1719581493117,-2287.08,0.00022027,3]
[330573575,1719581493127,-897.44,0.00022027,3]
[330573576,1719581493137,-1323.12,0.00022027,3]
[330573577,1719581493147,-500.0,0.00022027,3]
[330573578,1719581493156,-511.43,0.00022027,3]
[330573579,1719581493166,-660.68,0.00022027,3]
[330573580,1719581493176,-919.51,0.00022027,3]
[330573581,1719581493186,-1100.39,0.00022027,3]
[330573582,1719581493196,-578.27,0.00022027,3]
[330573583,1719581493206,-1443.4,0.00022027,3]
[330573584,1719581493215,-6645.26,0.00022027,3]
[330573585,1719581493225,-837.56,0.00022027,3]
[330573586,1719581493235,-2111.56,0.00022027,3]
[330573587,1719581493244,-1244.64,0.00022027,3]
[330573588,1719581493254,-645.54,0.00022027,3]
[330573589,1719581493264,-1835.87,0.00022027,3]
[330573590,1719581493274,-1450.85,0.00022027,3]
[330573591,1719581493283,-500.0,0.00022027,3]
[330573592,1719581493293,-500.0,0.00022027,3]
[330573593,1719581493302,-2439.85,0.00022027,3]
[330573594,1719581493312,-702.47,0.00022027,3]
[330573595,1719581493325,-1096.06,0.00022027,3]
[330573596,1719581493335,-598.44,0.00022027,3]
[330573597,1719581493344,-2014.08,0.00022027,3]
[330573598,1719581493354,-500.0,0.00022027,3]
[330573599,1719581493363,-500.0,0.00022027,3]
[330573600,1719581493373,-2164.99,0.00022027,3]
[330573601,1719581493383,-1770.49,0.00022027,3]
[330573602,1719581493392,-5010.18,0.00022027,3]
[330573603,1719581493402,-1514.61,0.00022027,3]
[330573604,1719581493413,-576.82951528,0.00022027,3]
[330573605,1719581493426,-500.0,0.00022027,3]
[330573606,1719581493436,-1634.2,0.00022027,3]
[330573607,1719581493446,-500.0,0.00022027,3]
[330573608,1719581493458,-1972.11,0.00022027,3]
[330573609,1719581493468,-981.91,0.00022027,3]
[330573610,1719581493477,-1289.86,0.00022027,3]
[330573611,1719581493487,-1872.23,0.00022027,3]
[330573612,1719581493500,-500.0,0.00022027,3]
[330573613,1719581493510,-500.0,0.00022027,3]
[330573614,1719581493519,-957.61,0.00022027,3]
[330573615,1719581493529,-689.93,0.00022027,3]
[330573616,1719581493539,-500.0,0.00022027,3]
[330573617,1719581493548,-1346.02,0.00022027,3]
[330573618,1719581493557,-1937.52,0.00022027,3]
[330573619,1719581493570,-8319.76,0.00022027,3]
[330573620,1719581493579,-564.83,0.00022027,3]
[330573621,1719581493589,-570.06164145,0.00022027,3]
[330573622,1719581493599,-1314.55,0.00022027,3]
[330573623,1719581493611,-500.0,0.00022027,3]
[330573624,1719581493620,-2235.79,0.00022027,3]
[330573625,1719581493630,-1278.6,0.00022027,3]
[330573626,1719581493639,-500.0,0.00022027,3]
[330573627,1719581493649,-500.0,0.00022027,3]
[330573628,1719581493658,-1157.09,0.00022027,3]
[330573629,1719581493668,-1730.25,0.00022027,3]
[330573630,1719581493677,-5355.41,0.00022027,3]
[330573631,1719581493687,-500.0,0.00022027,3]
[330573632,1719581493696,-2443.33,0.00022027,3]
[330573633,1719581493706,-444.1768613,0.00022027,3]
[330573634,1719581493716,-500.0,0.00022027,3]
[330573635,1719581493725,-500.0,0.00022027,3]
[330573636,1719581493735,-500.0,0.00022027,3]
[330573637,1719581493745,-556.53,0.00022027,3]
[330573638,1719581493754,-1941.38,0.00022027,3]
[330573639,1719581493763,-2413.29,0.00022027,3]
[330573640,1719581493773,-500.0,0.00022027,3]
[330573641,1719581493782,-693.2,0.00022027,3]
[330573642,1719581493792,-5956.58,0.00022027,3]
[330573643,1719581493802,-1765.52,0.00022027,3]
[330573644,1719581493811,-802.57,0.00022027,3]
[330573645,1719581493820,-500.0,0.00022027,3]
[330573646,1719581493833,-500.0,0.00022027,3]
[330573647,1719581493843,-500.0,0.00022027,3]
[330573648,1719581493855,-500.0,0.00022027,3]
[330573649,1719581493866,-917.75,0.00022027,3]
[330573650,1719581493875,-1339.62,0.00022027,3]
[330573651,1719581493884,-500.0,0.00022027,3]
[330573652,1719581493894,-500.0,0.00022027,3]
[330573653,1719581493903,-500.0,0.00022027,3]
[330573654,1719581493912,-500.0,0.00022027,3]
[330573655,1719581493921,-500.0,0.00022027,3]
[330573656,1719581493930,-500.0,0.00022027,3]
[330573657,1719581493940,-1738.31,0.00022027,3]
[330573658,1719581493949,-1513.95,0.00022027,3]
[330573659,1719581493958,-5728.45,0.00022027,3]
[330573660,1719581493967,-1400.67,0.00022027,3]
[330573661,1719581493977,-500.0,0.00022027,3]
[330573662,1719581493986,-1314.72,0.00022027,3]
[330573663,1719581493995,-2631.35,0.00022027,3]
[330573664,1719581494005,-1222.24,0.00022027,3]
[330573665,1719581494014,-2245.26,0.00022027,3]
[330573666,1719581494023,-500.0,0.00022027,3]
[330573667,1719581494032,-500.0,0.00022027,3]
[330573668,1719581494042,-500.0,0.00022027,3]
[330573669,1719581494051,-500.0,0.00022027,3]
[330573670,1719581494060,-500.0,0.00022027,3]
[330573671,1719581494074,-1528.39,0.00022027,3]
[330573672,1719581494084,-619.69306988,0.00022027,3]
[330573673,1719581494095,-500.0,0.00022027,3]
[330573674,1719581494104,-1763.94,0.00022027,3]
[330573675,1719581494115,-500.0,0.00022027,3]
[330573676,1719581494124,-500.0,0.00022027,3]
[330573677,1719581494134,-500.0,0.00022027,3]
[330573678,1719581494143,-800.36,0.00022027,3]
[330573679,1719581494153,-500.0,0.00022027,3]
[330573680,1719581494163,-500.0,0.00022027,3]
[330573681,1719581494172,-552.11,0.00022027,3]
[330573682,1719581494182,-3244.69,0.00022027,3]
[330573683,1719581494192,-1921.96,0.00022027,3]
[330573684,1719581494202,-500.0,0.00022027,3]
[330573685,1719581494211,-1343.31,0.00022027,3]
[330573686,1719581494221,-929.24,0.00022027,3]
[330573687,1719581494231,-500.0,0.00022027,3]
[330573688,1719581494241,-500.0,0.00022027,3]
[330573689,1719581494250,-500.0,0.00022027,3]
[330573690,1719581494260,-500.0,0.00022027,3]
[330573691,1719581494271,-500.0,0.00022027,3]